[Event "FIDE World Cup O12-B 2024"]
[Site "Batumi"]
[Date "2024.06.28"]
[Round "6.1"]
[White "Qu, Haoming"]
[Black "Aadik Theophane Lenin"]
[Result "1-0"]
[ECO "B40"]
[WhiteElo "1877"]
[BlackElo "1852"]
[Annotator "NA RC"]
[PlyCount "79"]
[EventDate "2024.06.23"]
[EventType "swiss"]
[EventCountry "GEO"]
[SourceTitle "playchess.com"]
[Source "ChessBase"]
[SourceQuality "1"]
[TimeControl "5400+30"]

1. e4 {[%emt 0:00:30]} c5 {[%emt 0:00:30]} 2. Nf3 {[%emt 0:00:00]} e6 {[%emt 0:00:08]} 3. c3 {[%emt 0:00:04]} Nf6 {[%emt 0:00:06]} 4. Bd3 {[%emt 0:00:14]} d5 {[%emt 0:02:45]} 5. e5 {[%emt 0:01:14]} Nfd7 {[%emt 0:00:10]} 6. Bc2 {[%emt 0:00:12]} c4 {[%emt 0:00:11]} 7. d4 {[%emt 0:00:09]} cxd3 {[%emt 0:00:36]} 8. Bxd3 {[%emt 0:00:11]} Nc6 {[%emt 0:00:56]} 9. Qe2 {[%emt 0:00:25]} Qc7 {[%emt 0:00:47]} 10. Bf4 {[%emt 0:00:28]} Be7 {[%emt 0:11:48]} ({Black should play} 10... f6 $11) 11. O-O {[%emt 0:02:27]} h6 {[%emt 0:04:43]} 12. h3 {[%emt 0:16:32]} g5 {[%emt 0:02:14]} 13. Bg3 {[%emt 0:00:05]} h5 {[%emt 0:01:10]} 14. Re1 {[%emt 0:02:05]} Nc5 {[%emt 0:16:26]} 15. Bc2 {[%emt 0:06:52]} a5 {[%emt 0:00:11]} 16. Na3 {[%emt 0:07:22]} Bd7 {[%emt 0:07:46]} 17. Nd4 {[%emt 0:07:26]} (17. Nb5 $16 Qb6 18. Reb1) 17... Nxd4 {[%emt 0:06:51]} 18. cxd4 {[%emt 0:00:01]} Na6 $14 {[%emt 0:00:16]} 19. Nb5 {[%emt 0:53:43]} Bxb5 {[%emt 0:02:03]} 20. Qxb5+ {[%emt 0:00:00]} Qd7 {[%emt 0:07:01]} 21. Qe2 {[%emt 0:00:00]} Nb4 {[%emt 0:01:04]} 22. Bd1 {[%emt 0:00:00]} a4 {[%emt 0:02:28]} 23. a3 {[%emt 0:00:00]} Nc6 {[%emt 0:00:08]} 24. Qd3 {[%emt 0:00:00]} Qc7 {[%emt 0:02:40]} 25. Re2 {[%emt 0:00:00]} Qb6 {[%emt 0:00:27]} 26. Rd2 {[%emt 0:00:00]} Kf8 {[%emt 0:00:29]} 27. Rb1 {[%emt 0:00:00]} Na5 {[%emt 0:03:57]} 28. f4 {[%emt 0:00:00]} Nc4 {[%emt 0:03:17]} 29. Rf2 {[%emt 0:00:00]} gxf4 {[%emt 0:06:22]} 30. Bxf4 {[%emt 0:00:00]} Ke8 {[%emt 0:02:21]} 31. Kh2 {[%emt 0:00:00]} Qa7 {[%emt 0:01:06]} 32. Be2 {[%emt 0:00:00]} Kd7 {[%emt 0:01:12]} 33. Rff1 {[%emt 0:00:00]} f6 {[%emt 0:01:54]} 34. exf6 {[%emt 0:00:00]} Bxf6 {[%emt 0:00:01]} 35. Qg6 {[%emt 0:00:00]} Raf8 {[%emt 0:03:01]} 36. Bxc4 {[%emt 0:00:00]} dxc4 {[%emt 0:00:52]} 37. Bh6 {[%emt 0:00:00]} Qb8+ {[%emt 0:00:44]} 38. Kh1 {[%emt 0:00:00]} Qd8 {[%emt 0:07:31]} 39. Bxf8 {[%emt 0:00:00]} Rxf8 {[%emt 0:00:03]} 40. Qe4 {[%emt 0:00:00]} 1-0

[Event "FIDE World Cup O12-B 2024"]
[Site "Batumi"]
[Date "2024.06.28"]
[Round "6.2"]
[White "Gabadadze, Gabriel"]
[Black "Garakhanov, Shamsi"]
[Result "1-0"]
[ECO "B51"]
[WhiteElo "1975"]
[BlackElo "1884"]
[Annotator "RC"]
[PlyCount "69"]
[EventDate "2024.06.23"]
[EventType "swiss"]
[EventCountry "GEO"]
[SourceTitle "playchess.com"]
[Source "ChessBase"]
[SourceQuality "1"]
[TimeControl "5400+30"]

1. e4 {[%emt 0:00:01]} c5 {[%emt 0:00:03]} 2. Nf3 {[%emt 0:00:06]} d6 {[%emt 0:00:07]} 3. Bb5+ {[%emt 0:00:05]} Nd7 {[%emt 0:00:05]} 4. c3 {[%emt 0:00:05]} a6 {[%emt 0:00:26]} 5. Bd3 {[%emt 0:00:07]} Ngf6 {[%emt 0:00:32]} 6. Bc2 {[%emt 0:00:09]} b5 {[%emt 0:00:26]} 7. d4 {[%emt 0:00:36]} cxd4 {[%emt 0:00:16]} 8. cxd4 {[%emt 0:00:25]} Bb7 {[%emt 0:00:12]} 9. Nbd2 {[%emt 0:03:12]} g6 {[%emt 0:01:31]} 10. O-O {[%emt 0:04:16]} Bg7 {[%emt 0:00:50]} 11. Re1 {[%emt 0:07:04]} O-O {[%emt 0:01:12]} 12. Nb3 {[%emt 0:01:23]} e5 {[%emt 0:05:53]} 13. d5 {[%emt 0:03:24]} a5 {[%emt 0:08:02]} 14. a4 {[%emt 0:01:32]} b4 {[%emt 0:00:48]} 15. Bd3 {[%emt 0:02:28]} Ne8 {[%emt 0:02:35]} 16. Bg5 {[%emt 0:06:36]} f6 {[%emt 0:00:25]} 17. Bd2 {[%emt 0:01:02]} h6 {[%emt 0:02:14]} 18. Nh4 {[%emt 0:02:16]} g5 {[%emt 0:00:35]} 19. Nf5 {[%emt 0:01:24]} Bc8 {[%emt 0:01:31]} 20. Qh5 {[%emt 0:01:46]} Kh7 {[%emt 0:02:14]} 21. Bb5 {[%emt 0:05:09]} Nb8 {[%emt 0:10:23]} 22. Qf3 {[%emt 0:02:15]} Nc7 {[%emt 0:01:04]} 23. Bd3 {[%emt 0:00:44]} Bxf5 {[%emt 0:02:35]} 24. Qxf5+ {[%emt 0:00:15]} Kg8 {[%emt 0:00:08]} 25. Rac1 {[%emt 0:03:16]} Kh8 {[%emt 0:02:05]} 26. Be3 {[%emt 0:02:00]} Nd7 {[%emt 0:02:14]} 27. Rc6 {[%emt 0:02:01]} Ne8 {[%emt 0:00:04]} 28. Rec1 {[%emt 0:01:13]} Rg8 {[%emt 0:00:55]} 29. Ba6 {[%emt 0:06:47]} Qe7 {[%emt 0:04:17]} 30. Bb5 {[%emt 0:01:20]} Qd8 {[%emt 0:00:17]} 31. Nxa5 {[%emt 0:06:45]} Rb8 {[%emt 0:03:45]} 32. Nb3 {[%emt 0:01:24]} Rf8 {[%emt 0:00:32]} 33. Bd2 {[%emt 0:03:14]} Nb6 {[%emt 0:02:13]} 34. Bxb4 {[%emt 0:03:12]} Qe7 {[%emt 0:01:13]} 35. Ba5 {[%emt 0:02:18]} 1-0

[Event "FIDE World Cup O12-B 2024"]
[Site "Batumi"]
[Date "2024.06.28"]
[Round "6.3"]
[White "Batbaatar, Baatar"]
[Black "Ibrahimli, Suat"]
[Result "0-1"]
[ECO "B28"]
[WhiteElo "1724"]
[BlackElo "1852"]
[Annotator "NA RC"]
[PlyCount "36"]
[EventDate "2024.06.23"]
[EventType "swiss"]
[EventCountry "GEO"]
[SourceTitle "playchess.com"]
[Source "ChessBase"]
[SourceQuality "1"]
[TimeControl "5400+30"]

1. e4 {[%emt 0:00:03]} c5 {[%emt 0:00:07]} 2. Nf3 {[%emt 0:00:02]} a6 {[%emt 0:00:04]} 3. c4 {[%emt 0:00:03]} Nc6 {[%emt 0:00:03]} 4. d4 {[%emt 0:00:08]} cxd4 {[%emt 0:00:03]} 5. Nxd4 {[%emt 0:00:14]} e5 {[%emt 0:00:04]} 6. Nf5 {[%emt 0:00:12]} d5 {[%emt 0:00:05]} 7. cxd5 {[%emt 0:01:04]} Bxf5 {[%emt 0:01:10]} 8. exf5 {[%emt 0:00:23]} Nd4 {[%emt 0:00:03]} 9. Bd3 {[%emt 0:00:13]} Nf6 {[%emt 0:04:29]} 10. Nc3 {[%emt 0:00:37]} Be7 {[%emt 0:00:22]} 11. O-O {[%emt 0:03:05]} O-O {[%emt 0:01:01]} 12. f4 {[%emt 0:03:03]} exf4 {[%emt 0:08:15]} 13. Rxf4 {[%emt 0:11:12]} Bc5 {[%emt 0:09:22]} 14. Be3 {[%emt 0:01:08]} Ne6 {[%emt 0:03:03]} 15. Bxc5 {[%emt 0:00:14]} Nxf4 {[%emt 0:00:07]} 16. Bxf8 {[%emt 0:00:09]} Qb6+ {[%emt 0:00:04]} 17. Kh1 {[%emt 0:00:49]} Qxb2 {[%emt 0:01:02]} 18. Na4 {[%emt 0:11:33]} Qxg2# {[%emt 0:00:17]} 0-1

[Event "FIDE World Cup O12-B 2024"]
[Site "Batumi"]
[Date "2024.06.28"]
[Round "6.4"]
[White "Martinez Flores, Matias"]
[Black "Minkhajdarov, Ruslan"]
[Result "1/2-1/2"]
[ECO "B43"]
[WhiteElo "2080"]
[BlackElo "1921"]
[Annotator "NA RC"]
[PlyCount "76"]
[EventDate "2024.06.23"]
[EventType "swiss"]
[EventCountry "GEO"]
[SourceTitle "playchess.com"]
[Source "ChessBase"]
[SourceQuality "1"]
[TimeControl "5400+30"]

1. e4 {[%emt 0:00:02]} c5 {[%emt 0:00:06]} 2. Nf3 {[%emt 0:00:19]} e6 {[%emt 0:00:06]} 3. d4 {[%emt 0:00:30]} cxd4 {[%emt 0:00:19]} 4. Nxd4 {[%emt 0:00:19]} Nc6 {[%emt 0:00:08]} 5. Nc3 {[%emt 0:00:06]} Qc7 {[%emt 0:00:08]} 6. Be3 {[%emt 0:02:19]} a6 {[%emt 0:00:17]} 7. f4 {[%emt 0:03:50]} b5 {[%emt 0:03:04]} 8. Qf3 {[%emt 0:01:07]} Bb7 {[%emt 0:03:18]} 9. Bd3 {[%emt 0:01:56]} Nf6 {[%emt 0:00:36]} 10. g4 {[%emt 0:00:23]} (10. O-O-O $142) 10... b4 {[%emt 0:22:20]} 11. Nce2 {[%emt 0:06:52]} d5 {[%emt 0:17:50]} 12. e5 {[%emt 0:09:22]} Ne4 {[%emt 0:01:01]} 13. Nxc6 {[%emt 0:12:03]} Bxc6 {[%emt 0:02:54]} 14. O-O {[%emt 0:58:22]} Nc5 {[%emt 0:20:29]} 15. Bd4 {[%emt 0:00:00]} ({White should try} 15. Nd4 $16) 15... Be7 $14 {[%emt 0:09:32]} 16. f5 {[%emt 0:00:00]} O-O-O {[%emt 0:03:52]} 17. Qe3 {[%emt 0:00:00]} Be8 {[%emt 0:06:00]} 18. c3 {[%emt 0:00:00]} Nxd3 {[%emt 0:00:49]} 19. Qxd3 {[%emt 0:00:00]} Bb5 {[%emt 0:00:07]} 20. Qe3 {[%emt 0:00:00]} Kb7 {[%emt 0:02:42]} 21. cxb4 {[%emt 0:00:00]} Bxb4 {[%emt 0:05:22]} 22. Rfc1 {[%emt 0:00:00]} Qa5 {[%emt 0:00:00]} 23. Nc3 {[%emt 0:00:00]} Rc8 {[%emt 0:00:00]} 24. a3 {[%emt 0:00:00]} Be7 {[%emt 0:00:00]} 25. b4 {[%emt 0:00:00]} Qd8 {[%emt 0:00:00]} 26. Nxb5 {[%emt 0:00:00]} axb5 {[%emt 0:00:00]} 27. Rxc8 {[%emt 0:00:00]} Qxc8 {[%emt 0:00:00]} 28. Rc1 {[%emt 0:00:41]} Qd7 {[%emt 0:00:00]} 29. Ba7 {[%emt 0:01:15]} Rc8 {[%emt 0:02:15]} 30. Qb6+ {[%emt 0:01:50]} Ka8 {[%emt 0:00:05]} 31. Rxc8+ {[%emt 0:00:12]} Qxc8 {[%emt 0:00:01]} 32. Qa5 {[%emt 0:00:28]} Kb7 {[%emt 0:02:07]} 33. Bf2 {[%emt 0:00:24]} Qc1+ {[%emt 0:00:34]} 34. Kg2 {[%emt 0:00:04]} Qc4 {[%emt 0:00:21]} 35. Qa7+ {[%emt 0:01:30]} Kc8 {[%emt 0:00:05]} 36. Qxe7 {[%emt 0:00:08]} Qxg4+ {[%emt 0:00:06]} 37. Bg3 {[%emt 0:00:05]} Qe2+ {[%emt 0:00:46]} 38. Kh3 {[%emt 0:00:04]} Qf1+ {[%emt 0:00:43]} 1/2-1/2

[Event "FIDE World Cup O12-B 2024"]
[Site "Batumi"]
[Date "2024.06.28"]
[Round "6.5"]
[White "Zhang, Haoxuan(Zj)"]
[Black "Golikov, Ivan"]
[Result "1/2-1/2"]
[ECO "B22"]
[WhiteElo "1907"]
[BlackElo "1723"]
[Annotator "NA RC"]
[PlyCount "92"]
[EventDate "2024.06.23"]
[EventType "swiss"]
[EventCountry "GEO"]
[SourceTitle "playchess.com"]
[Source "ChessBase"]
[SourceQuality "1"]
[TimeControl "5400+30"]

1. e4 {[%emt 0:00:04]} c5 {[%emt 0:00:05]} 2. Nf3 {[%emt 0:00:03]} Nc6 {[%emt 0:00:05]} 3. c3 {[%emt 0:00:08]} Nf6 {[%emt 0:00:08]} 4. e5 {[%emt 0:00:05]} Nd5 {[%emt 0:00:06]} 5. d4 {[%emt 0:00:05]} cxd4 {[%emt 0:00:19]} 6. cxd4 {[%emt 0:00:02]} d6 {[%emt 0:00:09]} 7. Bc4 {[%emt 0:00:07]} dxe5 {[%emt 0:00:21]} 8. dxe5 {[%emt 0:00:04]} Ndb4 {[%emt 0:00:30]} 9. Qb3 {[%emt 0:08:38] 9.0-0 deserves study.} e6 {[%emt 0:00:07] B22: Sicilian: 2 c3.} 10. O-O {[%emt 0:02:09]} Bd7 {[%emt 0:03:20]} 11. Qd1 {[%emt 0:05:06]} Na5 {[%emt 0:20:49]} 12. Be2 {[%emt 0:00:43]} Nd5 {[%emt 0:01:24]} 13. Bd2 {[%emt 0:03:05]} Be7 {[%emt 0:05:39]} 14. Nc3 {[%emt 0:04:34]} Nxc3 $146 {[%emt 0:01:33]} ({Predecessor:} 14... O-O 15. Bd3 Bc6 16. Nd4 Nb4 17. Nxc6 Naxc6 18. Be4 Nxe5 19. a3 Nbc6 20. Qe2 Bf6 {1-0 Mammadov,Z (2417)-Agmanov,Z (2413) PNWCC Online Blitz JP 21 2021 (9)}) 15. Bxc3 {[%emt 0:00:10]} Nc6 {[%emt 0:00:42]} 16. Qd2 {[%emt 0:01:14]} O-O {[%emt 0:08:37]} 17. Rfd1 {[%emt 0:01:39]} Qb6 {[%emt 0:00:40]} 18. Qf4 {[%emt 0:05:41]} Rad8 {[%emt 0:07:35]} 19. Ng5 {[%emt 0:11:42]} Nb4 {[%emt 0:04:27]} 20. Bd4 {[%emt 0:07:01]} Qa5 {[%emt 0:01:21]} 21. Ne4 $11 {[%emt 0:03:29]} Bb5 {[%emt 0:09:18]} 22. Bxb5 {[%emt 0:05:05]} Qxb5 {[%emt 0:00:59]} 23. Nd6 {[%emt 0:01:52]} Qa6 {[%emt 0:04:34]} 24. Qf3 {[%emt 0:07:54]} Nd5 {[%emt 0:06:12]} 25. Ne4 {[%emt 0:01:56]} b6 {[%emt 0:08:31]} 26. a3 {[%emt 0:00:44]} Qb5 {[%emt 0:01:05]} 27. Rac1 {[%emt 0:01:05]} Rc8 {[%emt 0:03:40]} 28. h3 {[%emt 0:05:32]} Rxc1 {[%emt 0:01:37]} 29. Rxc1 {[%emt 0:00:02]} Qd7 {[%emt 0:00:17]} 30. Nf6+ {[%emt 0:05:41]} Bxf6 {[%emt 0:02:21]} 31. exf6 {[%emt 0:00:09]} g6 {[%emt 0:00:25]} 32. Be5 {[%emt 0:00:38]} Rc8 {[%emt 0:00:35]} 33. Qd1 {[%emt 0:00:34]} h6 {[%emt 0:02:10]} 34. h4 {[%emt 0:02:14]} h5 {[%emt 0:01:23]} 35. Rc3 {[%emt 0:06:23]} Rxc3 {[%emt 0:00:49]} 36. bxc3 {[%emt 0:00:22]} Nxf6 {[%emt 0:00:18]} 37. Qf3 {[%emt 0:00:27]} Ne8 {[%emt 0:00:46]} 38. Qf4 {[%emt 0:02:12]} Kh7 {[%emt 0:01:47]} 39. Qg5 {[%emt 0:01:32]} Qd5 {[%emt 0:01:27]} 40. Qf4 {[%emt 0:00:43]} Kg8 {[%emt 0:00:56]} 41. Bd4 {[%emt 0:01:18]} Qd6 {[%emt 0:00:43]} 42. Be5 {[%emt 0:00:58]} Qf8 {[%emt 0:00:54]} 43. Qg5 {[%emt 0:01:33]} Qc5 {[%emt 0:01:45]} 44. Qf4 {[%emt 0:00:24]} Qf8 {[%emt 0:01:12]} 45. Qg5 {[%emt 0:00:05]} Qc5 {[%emt 0:00:39]} 46. Qf4 {[%emt 0:00:07]} Qf8 {[%emt 0:00:35]} 1/2-1/2

[Event "FIDE World Cup O12-B 2024"]
[Site "Batumi"]
[Date "2024.06.28"]
[Round "6.6"]
[White "Tatvidze, Davit"]
[Black "Ambartsumyan, Yuri"]
[Result "1-0"]
[ECO "E09"]
[WhiteElo "2000"]
[BlackElo "1750"]
[Annotator "NA RC"]
[PlyCount "109"]
[EventDate "2024.06.23"]
[EventType "swiss"]
[EventCountry "GEO"]
[SourceTitle "playchess.com"]
[Source "ChessBase"]
[SourceQuality "1"]
[TimeControl "5400+30"]

1. c4 {[%emt 0:00:02]} c6 {[%emt 0:00:03]} 2. d4 {[%emt 0:00:04]} d5 {[%emt 0:00:02]} 3. Nf3 {[%emt 0:00:03]} Nf6 {[%emt 0:00:15]} 4. Qc2 {[%emt 0:00:04]} e6 {[%emt 0:00:13]} 5. g3 {[%emt 0:00:07]} Nbd7 {[%emt 0:00:06]} 6. Bg2 {[%emt 0:00:29]} Be7 {[%emt 0:00:03]} 7. O-O {[%emt 0:00:07]} O-O {[%emt 0:00:02]} 8. Nbd2 {[%emt 0:00:24]} b6 {[%emt 0:00:12]} 9. e4 {[%emt 0:00:34]} dxe4 {[%emt 0:00:04]} 10. Nxe4 {[%emt 0:00:03]} Bb7 {[%emt 0:04:33]} 11. Rd1 {[%emt 0:11:08]} Nxe4 {[%emt 0:00:07]} 12. Qxe4 {[%emt 0:00:05]} Nf6 {[%emt 0:00:07]} 13. Qe2 {[%emt 0:00:02]} Qc7 {[%emt 0:01:23]} 14. Be3 {[%emt 0:22:27] E09: Closed Catalan: Main Line: 7 Qc2 c6 8 Nbd2.} (14. Bf4 $14 Bd6 15. Ne5) 14... Rfd8 {[%emt 0:09:17]} 15. Rac1 {[%emt 0:01:37]} c5 {[%emt 0:01:44]} 16. Bf4 {[%emt 0:01:55]} Bd6 {[%emt 0:03:00]} 17. Bg5 {[%emt 0:02:05]} Be7 {[%emt 0:01:05]} 18. Qe5 {[%emt 0:21:20]} Bd6 {[%emt 0:03:12]} 19. Qe3 {[%emt 0:01:15]} cxd4 {[%emt 0:07:50]} 20. Nxd4 {[%emt 0:01:18]} Bxg2 {[%emt 0:02:23]} 21. Bxf6 {[%emt 0:04:16]} gxf6 {[%emt 0:00:06]} 22. Kxg2 {[%emt 0:00:08]} Bc5 {[%emt 0:00:30]} 23. Qf3 {[%emt 0:04:23]} f5 $11 {[%emt 0:16:23]} 24. b4 {[%emt 0:17:32]} Bxd4 {[%emt 0:10:17]} 25. Rxd4 {[%emt 0:00:03]} Rxd4 {[%emt 0:00:38]} 26. Qxa8+ {[%emt 0:00:06]} Kg7 {[%emt 0:00:27]} 27. c5 {[%emt 0:03:56]} Rxb4 {[%emt 0:01:08]} 28. c6 {[%emt 0:00:59]} Rd4 {[%emt 0:00:09]} 29. Qb7 {[%emt 0:00:08]} Rd7 {[%emt 0:00:08]} 30. Qa6 {[%emt 0:00:05]} Rd6 {[%emt 0:00:30]} 31. Qb5 {[%emt 0:00:19]} Rd5 {[%emt 0:10:25]} 32. Qb2+ {[%emt 0:01:08]} f6 {[%emt 0:00:08]} 33. Qe2 {[%emt 0:01:06]} Rd6 {[%emt 0:00:47]} 34. Qc4 {[%emt 0:00:32]} Rd5 {[%emt 0:00:57]} 35. Qb4 {[%emt 0:00:42]} a5 {[%emt 0:02:24]} 36. Qb3 {[%emt 0:01:13]} Rd6 {[%emt 0:00:40]} 37. Qc3 {[%emt 0:02:26]} Rd5 {[%emt 0:00:04]} 38. Qe3 {[%emt 0:00:10]} Rd6 {[%emt 0:02:31]} 39. Qf4 {[%emt 0:00:32]} e5 {[%emt 0:02:38]} 40. Qc4 {[%emt 0:00:16]} Rd8 {[%emt 0:01:17]} 41. Qe6 {[%emt 0:00:52]} Rd4 {[%emt 0:02:18]} 42. Qxf5 {[%emt 0:01:27]} b5 {[%emt 0:01:19]} 43. h4 {[%emt 0:00:23]} Rd6 {[%emt 0:04:09]} 44. Qg4+ {[%emt 0:00:24]} Kh8 {[%emt 0:00:14]} 45. Qe4 {[%emt 0:00:47]} Rd4 {[%emt 0:01:32]} 46. Qf3 {[%emt 0:00:16]} Kg7 {[%emt 0:00:11]} 47. h5 {[%emt 0:00:07]} Rd6 {[%emt 0:01:34]} 48. h6+ {[%emt 0:02:11]} Kf8 {[%emt 0:00:03]} 49. Qg4 {[%emt 0:00:44]} Rd8 {[%emt 0:00:16]} 50. Qe6 {[%emt 0:00:30]} a4 {[%emt 0:03:14]} 51. Qxf6+ {[%emt 0:00:11]} Kg8 {[%emt 0:00:06]} 52. Rc3 {[%emt 0:00:49]} Rc8 {[%emt 0:03:34]} 53. Qe6+ {[%emt 0:00:23]} Kh8 {[%emt 0:02:24]} 54. Rf3 {[%emt 0:00:58]} Rd8 {[%emt 0:01:23]} 55. Rf7 {[%emt 0:00:34]} 1-0

[Event "FIDE World Cup O12-B 2024"]
[Site "Batumi"]
[Date "2024.06.28"]
[Round "6.7"]
[White "Kakavand, Ramtin"]
[Black "Diaz Guerrero, Jesus Daniel"]
[Result "0-1"]
[ECO "C77"]
[WhiteElo "2059"]
[BlackElo "2032"]
[Annotator "NA RC"]
[PlyCount "112"]
[EventDate "2024.06.23"]
[EventType "swiss"]
[EventCountry "GEO"]
[SourceTitle "playchess.com"]
[Source "ChessBase"]
[SourceQuality "1"]
[TimeControl "5400+30"]

1. e4 {[%emt 0:00:03]} e5 {[%emt 0:00:27]} 2. Nf3 {[%emt 0:00:05]} Nc6 {[%emt 0:00:05]} 3. Bb5 {[%emt 0:00:05]} a6 {[%emt 0:00:06]} 4. Ba4 {[%emt 0:00:04]} Nf6 {[%emt 0:00:49]} 5. d3 {[%emt 0:00:07]} d6 {[%emt 0:00:06]} 6. c3 {[%emt 0:00:05]} g6 {[%emt 0:00:05]} 7. O-O {[%emt 0:00:20]} Bg7 {[%emt 0:00:06]} 8. Nbd2 {[%emt 0:00:33]} O-O {[%emt 0:00:21]} 9. Re1 {[%emt 0:00:07]} Re8 {[%emt 0:02:36] C77: Ruy Lopez: 3...a6 4 Ba4 Nf6, unusual lines.} 10. h3 {[%emt 0:01:37]} b5 {[%emt 0:01:30]} 11. Bc2 {[%emt 0:00:36]} Bb7 {[%emt 0:00:54]} 12. a4 {[%emt 0:03:08]} Nb8 {[%emt 0:05:33]} 13. d4 {[%emt 0:01:06]} Nbd7 {[%emt 0:00:31]} 14. Bd3 {[%emt 0:03:25]} c6 {[%emt 0:01:22]} 15. Qc2 {[%emt 0:05:28]} Qc7 {[%emt 0:07:27]} 16. b3 {[%emt 0:05:15]} Nh5 {[%emt 0:17:28]} 17. Bb2 {[%emt 0:06:26]} Rac8 {[%emt 0:09:38]} 18. b4 {[%emt 0:11:53]} Nb6 {[%emt 0:13:38]} 19. dxe5 {[%emt 0:10:21]} Nxa4 {[%emt 0:00:48]} 20. exd6 {[%emt 0:24:13]} Qxd6 {[%emt 0:00:14]} 21. e5 $15 {[%emt 0:00:24]} Qd7 {[%emt 0:16:49]} 22. Ne4 {[%emt 0:23:59]} c5 {[%emt 0:12:14]} 23. bxc5 {[%emt 0:00:45]} Bxe4 {[%emt 0:01:09]} 24. Rxe4 {[%emt 0:00:47]} Nxc5 {[%emt 0:02:29]} 25. Rd4 {[%emt 0:00:09]} Qb7 {[%emt 0:00:20]} 26. Be4 {[%emt 0:01:04]} Qb8 {[%emt 0:00:46]} 27. Ba3 {[%emt 0:00:56]} Bxe5 {[%emt 0:02:15]} 28. Bxc5 {[%emt 0:00:38]} Rxc5 {[%emt 0:00:09]} 29. Rxa6 {[%emt 0:00:04]} Bxd4 {[%emt 0:00:59]} 30. Ra8 {[%emt 0:00:01]} Bg7 {[%emt 0:02:22]} 31. Rxb8 {[%emt 0:00:32]} Rxb8 {[%emt 0:00:02]} 32. Qd3 {[%emt 0:00:20]} Rxc3 {[%emt 0:03:12]} 33. Qd6 {[%emt 0:00:16]} Rf8 {[%emt 0:00:00]} 34. Qb6 {[%emt 0:00:17]} Rb3 {[%emt 0:00:14]} 35. Bd5 {[%emt 0:00:43]} Rb1+ {[%emt 0:00:17]} 36. Kh2 {[%emt 0:00:02]} Nf4 {[%emt 0:00:47]} 37. Be4 {[%emt 0:01:19]} Rb2 {[%emt 0:00:24]} 38. g3 {[%emt 0:00:46]} Ne2 {[%emt 0:00:38]} 39. h4 {[%emt 0:01:16]} Nc3 {[%emt 0:00:17]} 40. Bd3 {[%emt 0:00:25]} Nd1 {[%emt 0:00:17]} 41. Ng5 {[%emt 0:00:35]} Nxf2 {[%emt 0:00:21]} 42. Bxb5 {[%emt 0:00:09]} Ne4+ {[%emt 0:00:39]} 43. Kh3 {[%emt 0:00:05]} Nc3 {[%emt 0:00:14]} 44. Qa6 {[%emt 0:00:10]} Rxb5 {[%emt 0:00:25]} 45. Qc6 {[%emt 0:00:11]} Rf5 {[%emt 0:00:40]} 46. Qc4 {[%emt 0:00:12]} h6 {[%emt 0:00:30]} 47. Ne4 {[%emt 0:00:11]} Nxe4 {[%emt 0:00:06]} 48. Qxe4 {[%emt 0:00:01]} Re5 {[%emt 0:00:08]} 49. Qc4 {[%emt 0:00:06]} Re3 {[%emt 0:00:22]} 50. h5 {[%emt 0:00:09]} gxh5 {[%emt 0:00:11]} 51. Qc5 {[%emt 0:00:06]} Rfe8 {[%emt 0:00:26]} 52. Qxh5 {[%emt 0:00:01]} R8e5 {[%emt 0:00:20]} 53. Qg4 {[%emt 0:00:01]} Rg5 {[%emt 0:00:29]} 54. Qc8+ {[%emt 0:00:06]} Kh7 {[%emt 0:00:04]} 55. Qc2+ {[%emt 0:00:07]} Rg6 {[%emt 0:00:04]} 56. Kh4 {[%emt 0:00:10]} Rexg3 {[%emt 0:00:11]} 0-1

[Event "FIDE World Cup O12-B 2024"]
[Site "Batumi"]
[Date "2024.06.28"]
[Round "6.8"]
[White "Yusupov, Rauf"]
[Black "Amreyev, Azat"]
[Result "1/2-1/2"]
[ECO "E92"]
[WhiteElo "1800"]
[BlackElo "1704"]
[Annotator "NA RC"]
[PlyCount "64"]
[EventDate "2024.06.23"]
[EventType "swiss"]
[EventCountry "GEO"]
[SourceTitle "playchess.com"]
[Source "ChessBase"]
[SourceQuality "1"]
[TimeControl "5400+30"]

1. d4 {[%emt 0:00:01]} Nf6 {[%emt 0:00:07]} 2. Nf3 {[%emt 0:00:08]} g6 {[%emt 0:00:08]} 3. c4 {[%emt 0:00:16]} Bg7 {[%emt 0:00:14]} 4. Nc3 {[%emt 0:00:05]} O-O {[%emt 0:00:08]} 5. e4 {[%emt 0:00:11]} d6 {[%emt 0:00:27]} 6. Be2 {[%emt 0:00:24]} e5 {[%emt 0:00:27]} 7. dxe5 {[%emt 0:00:24]} dxe5 {[%emt 0:00:15]} 8. Qxd8 {[%emt 0:00:40]} Rxd8 {[%emt 0:00:07]} 9. Bg5 {[%emt 0:00:35]} Re8 {[%emt 0:00:35]} 10. Bxf6 {[%emt 0:01:22]} Bxf6 {[%emt 0:00:21]} 11. Nd5 {[%emt 0:00:06]} Bd8 {[%emt 0:00:04]} 12. O-O-O {[%emt 0:02:52]} Bg4 {[%emt 0:05:41]} 13. Ng1 {[%emt 0:05:48]} Be6 {[%emt 0:03:46]} 14. Bd3 {[%emt 0:05:06]} c6 {[%emt 0:02:26]} 15. Nc3 {[%emt 0:02:50]} Na6 {[%emt 0:02:29]} 16. Nge2 {[%emt 0:02:17]} Bb6 {[%emt 0:01:48]} 17. f3 {[%emt 0:06:08]} Rad8 {[%emt 0:00:34]} 18. b3 {[%emt 0:04:22]} Rd7 {[%emt 0:13:02]} 19. Bc2 {[%emt 0:02:01]} Bd4 {[%emt 0:01:02]} 20. Kb1 {[%emt 0:09:55]} Red8 {[%emt 0:01:04]} 21. h3 {[%emt 0:02:24]} Bxc3 {[%emt 0:05:47]} 22. Nxc3 {[%emt 0:00:23]} Rd2 {[%emt 0:00:08]} 23. Kc1 {[%emt 0:00:44]} Rxd1+ {[%emt 0:00:56]} 24. Rxd1 {[%emt 0:00:16]} Rxd1+ {[%emt 0:00:09]} 25. Bxd1 {[%emt 0:01:19]} Nc7 {[%emt 0:00:23]} 26. Be2 {[%emt 0:00:14]} h5 {[%emt 0:00:38]} 27. Nd1 {[%emt 0:01:29]} Bc8 {[%emt 0:00:52]} 28. Nf2 {[%emt 0:02:48]} Ne6 {[%emt 0:00:38]} 29. Nd3 {[%emt 0:02:41]} Nf4 {[%emt 0:00:26]} 30. Nxf4 {[%emt 0:00:40]} exf4 {[%emt 0:00:04]} 31. c5 {[%emt 0:01:28]} Kg7 {[%emt 0:00:28]} 32. Kd2 {[%emt 0:03:13]} Kf6 {[%emt 0:00:15]} 1/2-1/2